bitfinex/quotes_SOLUSD_20250710
["timestamp","ask_amount","ask_price","bid_price","bid_amount"]
[1752160022849,0.03,157.13,157.12,13.86671675]
[1752160026238,0.03,157.13,157.12,0.68]
[1752160026540,0.03,157.13,157.1,0.68]
[1752160026744,7.54215464,157.12,157.08,0.68]
[1752160027127,0.72,157.11,157.06,6.4313]
[1752160027447,6.82215464,157.1,157.07,0.69]
[1752160027828,7.54215464,157.11,157.07,0.69]
[1752160029124,13.90735751,157.11,157.07,0.69]
[1752160029842,13.18735751,157.11,157.08,0.69]
[1752160030526,13.89735751,157.11,157.08,0.69]
[1752160030834,13.89735751,157.11,157.06,13.24913196]
[1752160031031,7.53215464,157.1,157.06,7.57215464]
[1752160031230,6.82215464,157.07,157.06,0.06]
[1752160031646,7.53215464,157.07,157.06,0.06]
[1752160032926,13.89874278,157.07,157.06,0.06]
[1752160036327,13.18874278,157.07,157.06,0.06]
[1752160037856,13.89874278,157.07,157.06,0.06]
[1752160040756,30.68342675,157.07,157.06,0.06]
[1752160042831,56.68342675,157.07,157.06,0.06]
[1752160044856,63.36342675,157.07,157.06,0.06]
[1752160046039,13.18874278,157.07,157.06,0.06]
[1752160046254,72.57874278,157.07,157.06,0.06]
[1752160048562,72.59874278,157.07,157.06,0.06]
[1752160049343,71.88874278,157.07,157.06,0.06]
[1752160050272,72.59874278,157.07,157.06,0.06]
[1752160052041,72.57874278,157.07,157.06,0.06]
[1752160053254,13.18874278,157.07,157.06,0.06]
[1752160053466,6.82215464,157.08,157.06,0.75]
[1752160053642,6.82215464,157.09,157.06,0.75]
[1752160054971,45.84769257,157.1,157.06,0.75]
[1752160055963,13.18769257,157.1,157.06,0.75]
[1752160056163,6.3650848,157.11,157.06,13.93905556]
[1752160056466,13.18723944,157.11,157.07,0.69]
[1752160056854,39.18688833,157.12,157.07,7.51215464]
[1752160057058,39.18688833,157.12,157.08,0.69]
[1752160057464,13.18688833,157.12,157.08,0.69]
[1752160059665,6.36473369,157.12,157.08,0.69]
[1752160059870,39.51215464,157.13,157.09,6.82215464]
[1752160060079,6.85215464,157.13,157.1,0.7]
[1752160060264,6.85215464,157.13,157.11,0.7]
[1752160060966,0.03,157.13,157.11,0.7]
[1752160061484,13.21631728,157.13,157.08,13.18818312]
[1752160061644,13.21631728,157.13,157.08,0.7]
[1752160061645,6.82215464,157.11,157.08,0.7]
[1752160062145,7.52215464,157.11,157.08,0.7]
[1752160062363,7.52215464,157.1,157.06,0.76]
[1752160062558,6.82215464,157.1,157.06,7.12697263]
[1752160062761,6.82215464,157.1,157.07,0.7]
[1752160062954,7.06538042,157.1,157.06,0.06]
[1752160063175,13.18753506,157.1,157.07,0.7]
[1752160063759,6.82215464,157.09,157.07,0.7]
[1752160064483,13.88804231,157.09,157.06,0.76]
[1752160064771,6.82215464,157.09,157.06,0.06]
[1752160065069,6.82215464,157.09,157.07,0.7]
[1752160065461,6.82215464,157.11,157.07,0.7]
[1752160066256,6.82215464,157.1,157.08,0.7]
[1752160066455,0.7,157.1,157.06,0.76]
[1752160066669,6.82215464,157.08,157.06,0.76]
[1752160066883,0.7,157.1,157.07,0.7]
[1752160067052,6.82215464,157.09,157.07,0.7]
[1752160069757,6.82215464,157.09,157.06,0.76]
[1752160070755,6.82215464,157.09,157.07,0.7]
[1752160071170,7.06562756,157.1,157.06,0.06]
[1752160071483,6.82215464,157.07,157.06,0.06]
[1752160071876,7.52215464,157.07,157.06,0.06]
[1752160072272,6.82215464,157.07,157.06,0.06]
[1752160072673,6.82215464,157.08,157.06,0.06]
[1752160074104,6.82215464,157.08,157.06,0.76]
[1752160074764,6.36554409,157.1,157.07,0.7]
[1752160075077,6.82215464,157.09,157.07,0.7]
[1752160076471,0.7,157.1,157.07,0.7]
[1752160076782,0.7,157.1,157.06,6.42691746]
[1752160076783,6.82215464,157.1,157.08,0.7]
[1752160077794,7.06513103,157.11,157.08,0.7]
[1752160077969,6.82215464,157.1,157.08,0.7]
[1752160078170,13.18728567,157.11,157.08,0.7]
[1752160078385,13.88728567,157.11,157.08,0.7]
[1752160078793,13.18728567,157.11,157.08,0.7]
[1752160079188,6.82215464,157.11,157.08,0.7]
[1752160079886,13.18718755,157.11,157.08,0.7]
[1752160080065,13.88718755,157.11,157.08,0.7]
[1752160080266,6.82215464,157.09,157.06,0.06]
[1752160080466,6.82215464,157.08,157.06,0.06]
[1752160080663,7.52215464,157.08,157.06,0.06]
[1752160080870,7.52215464,157.07,157.06,0.06]
[1752160081067,56.94683861,157.07,157.06,0.06]
[1752160082092,63.31342675,157.07,157.06,0.06]
[1752160089600,16.78468397,157.03,157.02,0.06]
[1752160089909,56.24683861,157.03,157.02,0.06]
[1752160090415,56.91683861,157.03,157.02,0.06]
[1752160091689,63.2850485,157.03,157.02,0.06]
[1752160095013,62.6150485,157.03,157.02,0.06]
[1752160095593,63.2850485,157.03,157.02,0.06]
[1752160098688,39.46215464,157.03,157.02,0.06]
[1752160098895,45.83036453,157.03,157.02,0.06]
[1752160099492,63.2850485,157.03,157.02,0.06]
[1752160101398,62.6150485,157.03,157.02,0.06]
[1752160101605,39.00820989,157.03,157.02,0.78]
[1752160101805,45.83036453,157.03,157.02,0.78]
[1752160102194,39.46215464,157.03,157.02,0.06]
[1752160102412,39.46215464,157.03,157.02,0.78]
[1752160103009,45.83036453,157.03,157.02,0.78]
[1752160103197,45.83036453,157.03,157.02,0.06]
[1752160103510,13.19036453,157.03,157.02,0.06]
[1752160104523,6.36820989,157.03,157.02,0.06]
[1752160104693,161.64844381,157.06,157.02,0.06]
[1752160104893,6.82215464,157.03,157.02,0.78]
[1752160105423,13.19036453,157.03,157.02,0.06]
[1752160108203,13.86036453,157.03,157.02,0.06]
[1752160108510,13.19036453,157.03,157.02,0.06]
[1752160108707,13.86036453,157.03,157.02,0.06]
[1752160108897,46.44036453,157.03,157.02,0.06]
[1752160112203,45.77036453,157.03,157.02,0.06]
[1752160112517,13.19036453,157.03,157.02,0.06]
[1752160112819,6.82215464,157.03,157.02,0.06]
[1752160113430,13.19036453,157.03,157.02,0.06]
[1752160115827,38.92799428,157.04,157.02,0.78]
[1752160116121,6.82215464,157.03,157.02,0.78]
[1752160117616,13.19036453,157.03,157.02,0.06]
[1752160117794,6.82215464,157.03,157.02,0.72]
[1752160118698,38.92806936,157.04,157.02,0.72]
[1752160118893,6.82215464,157.03,157.02,0.72]
[1752160119151,6.82215464,157.03,157.02,0.06]
[1752160119311,6.82215464,157.03,157.02,0.72]
[1752160119619,6.82215464,157.03,157.02,0.06]
[1752160119819,6.82215464,157.03,157.02,0.72]
[1752160121343,0.03,157.06,157.02,7.54215464]
[1752160121633,0.03,157.06,157.03,7.48215464]
[1752160121803,0.03,157.06,157.03,0.66]
[1752160122004,0.03,157.06,157.04,0.66]
[1752160122414,6.85215464,157.06,157.05,0.66]
[1752160122727,6.85215464,157.06,157.04,0.66]
[1752160123143,7.49215464,157.05,157.02,0.72]
[1752160123434,6.82215464,157.03,157.02,0.72]
[1752160123637,6.82215464,157.03,157.02,0.06]
[1752160124538,24.27683861,157.03,157.02,0.06]
[1752160124717,30.6450485,157.03,157.02,0.06]
[1752160124917,6.82215464,157.03,157.02,0.06]
[1752160126123,7.49215464,157.03,157.02,0.06]
[1752160126944,13.86036453,157.03,157.02,0.06]
[1752160127738,30.6450485,157.03,157.02,0.06]
[1752160135057,63.2250485,157.03,157.02,0.06]
[1752160138847,16.78468397,157.02,157.0,0.06]
[1752160139166,39.38215464,157.01,157.0,0.06]
[1752160139460,40.05215464,157.01,157.0,0.06]
[1752160140365,26.0,156.99,156.98,0.2]
[1752160140539,65.38215464,156.99,156.98,0.2]
[1752160140740,72.42198711,156.99,156.98,0.2]
[1752160142062,75.74635406,156.99,156.98,0.2]
[1752160143366,75.07635406,156.99,156.98,0.2]
[1752160143573,65.86103803,156.99,156.98,0.2]
[1752160143875,66.53103803,156.99,156.98,0.2]
[1752160144041,59.49120556,156.99,156.98,0.86]
[1752160144378,65.86103803,156.99,156.98,0.86]
[1752160144549,65.86103803,156.99,156.98,0.2]
[1752160145065,59.03888339,156.99,156.98,0.86]
[1752160145256,65.86103803,156.99,156.98,0.2]
[1752160147374,66.53103803,156.99,156.98,0.2]
[1752160149977,66.52103803,156.99,156.98,0.2]
[1752160153455,26.47888339,156.99,156.98,0.89]
[1752160153682,65.86103803,156.99,156.98,0.2]
[1752160157262,65.86103803,156.99,156.98,0.89]
[1752160157461,52.66905092,156.99,156.98,0.89]
[1752160157760,65.86103803,156.99,156.98,0.2]
[1752160158662,33.30103803,156.99,156.98,0.2]
[1752160158876,65.84103803,156.99,156.98,0.2]
[1752160160178,65.84103803,156.99,156.98,0.89]
[1752160162282,59.47120556,156.99,156.98,0.89]
[1752160163068,65.84103803,156.99,156.98,0.89]
[1752160163466,65.84103803,156.99,156.98,0.2]
[1752160165670,66.50103803,156.99,156.98,0.2]
[1752160167989,59.67888339,156.99,156.98,0.2]
[1752160168191,66.50103803,156.99,156.98,0.2]
[1752160168588,65.84103803,156.99,156.98,0.2]
[1752160168983,59.01888339,156.99,156.98,0.89]
[1752160169168,52.64905092,156.99,156.98,0.89]
[1752160169368,26.93120556,156.99,156.98,0.89]
[1752160170076,145.73,157.0,156.98,0.89]
[1752160170280,145.73,157.0,156.98,7.26023707]
[1752160170481,145.73,157.0,156.99,0.69]
[1752160170482,0.03,157.0,156.99,0.69]
[1752160174202,6.85215464,157.0,156.99,0.69]
[1752160177584,0.03,157.0,156.99,0.69]
[1752160177768,6.85215464,157.0,156.99,0.69]
[1752160178199,0.03,157.0,156.99,0.69]
[1752160178400,6.85215464,157.0,156.99,0.69]
[1752160179994,6.85215464,157.0,156.98,0.2]
[1752160180201,6.85215464,157.0,156.98,0.91]
[1752160182010,6.85215464,157.0,156.99,0.71]
[1752160182797,4.39690629,157.0,156.99,0.71]
[1752160183605,4.39690629,157.0,156.98,0.91]
[1752160183782,0.03,157.0,156.98,0.2]
[1752160183982,4.39690629,157.0,156.99,0.71]
[1752160185495,0.03,157.0,156.98,0.2]
[1752160185802,4.39690629,157.0,156.99,0.71]
[1752160186594,0.03,157.0,156.99,0.71]
[1752160186909,4.39690629,157.0,156.99,0.71]
[1752160189214,0.03,157.0,156.99,0.71]
[1752160189401,4.39690629,157.0,156.99,0.71]
[1752160189806,0.03,157.0,156.99,0.71]
[1752160190108,4.39690629,157.0,156.99,0.71]
[1752160192927,4.39690629,157.0,156.98,0.91]
[1752160195616,0.03,157.0,156.98,0.91]
[1752160195823,4.39690629,157.0,156.98,0.91]
[1752160197510,54.34159026,156.99,156.98,0.2]
[1752160197813,60.71142273,156.99,156.98,0.2]
[1752160203827,60.71142273,156.99,156.97,0.06]
[1752160204010,21.15159026,156.95,156.94,0.06]
[1752160204211,53.63159026,156.95,156.94,0.06]
[1752160204511,54.34159026,156.95,156.94,0.06]
[1752160205029,60.71304613,156.95,156.94,0.06]
[1752160208822,28.23304613,156.95,156.94,0.06]
[1752160209132,60.73304613,156.95,156.94,0.06]
[1752160211632,60.73304613,156.95,156.92,0.2]
[1752160211633,42.78468397,156.94,156.92,0.2]
[1752160211925,42.78468397,156.91,156.9,0.2]
[1752160212126,79.65159026,156.91,156.9,0.2]
[1752160212314,80.32159026,156.91,156.9,0.2]
[1752160213003,86.69467036,156.91,156.9,0.2]
[1752160214307,16.78468397,156.9,156.88,0.06]
[1752160214513,71.11921542,156.89,156.88,0.06]
[1752160214828,71.78921542,156.89,156.88,0.06]
[1752160215014,70.00301856,156.89,156.88,0.06]
[1752160215327,70.00301856,156.89,156.86,0.2]
[1752160215328,16.78468397,156.88,156.86,0.2]
[1752160215511,39.33722103,156.87,156.86,0.2]
[1752160215709,40.00722103,156.87,156.86,0.2]
[1752160216418,61.78607673,156.87,156.86,0.2]
[1752160216612,61.78607673,156.87,156.85,0.2]
[1752160216613,16.78468397,156.86,156.85,0.2]
[1752160216806,27.5534884,156.86,156.85,0.2]
[1752160217007,33.92859996,156.86,156.85,0.2]
[1752160217314,59.92859996,156.86,156.85,0.2]
[1752160217929,59.92859996,156.86,156.85,1e-08]
[1752160218133,42.78468397,156.84,156.82,0.2]
[1752160218331,82.121905,156.84,156.82,0.2]
[1752160219130,88.4978295,156.84,156.82,0.2]
[1752160219438,16.78468397,156.83,156.82,0.2]
[1752160219642,23.621905,156.83,156.82,0.2]
[1752160219810,24.291905,156.83,156.82,0.2]
[1752160221311,30.66823605,156.83,156.82,0.2]
[1752160222239,30.66823605,156.83,156.81,0.2]
[1752160222240,162.48468397,156.82,156.81,0.2]
[1752160222549,162.48468397,156.82,156.78,0.2]
[1752160222550,26.0,156.79,156.78,0.2]
[1752160222711,65.35722103,156.79,156.78,0.2]
[1752160222912,66.02722103,156.79,156.78,0.2]
[1752160223155,65.35722103,156.79,156.78,0.2]
[1752160223449,65.35722103,156.79,156.78,0.92]
[1752160223450,32.83722103,156.79,156.78,0.92]
[1752160223612,65.35722103,156.79,156.78,0.92]
[1752160223813,65.35722103,156.79,156.78,0.2]
[1752160224442,72.4051788,156.79,156.78,0.2]
[1752160224612,65.35722103,156.79,156.78,0.2]
[1752160225540,71.7351788,156.79,156.78,0.2]
[1752160225741,65.35722103,156.79,156.78,0.2]
[1752160227325,32.83722103,156.79,156.78,0.2]
[1752160227526,65.47722103,156.79,156.78,0.2]
[1752160228538,82.261905,156.79,156.78,0.92]
[1752160230347,16.78468397,156.79,156.78,0.92]
[1752160230644,145.7,156.82,156.78,15.71768561]
[1752160230851,145.7,156.82,156.79,7.55722103]
[1752160231026,152.53722103,156.82,156.8,0.72]
[1752160232222,152.53722103,156.82,156.79,6.37783908]
[1752160232521,169.321905,156.82,156.81,0.72]
[1752160233727,169.321905,156.82,156.79,0.72]
[1752160233929,6.83722103,156.81,156.8,0.72]
[1752160234736,195.14468397,156.82,156.8,0.72]
[1752160234935,6.83722103,156.81,156.8,0.72]
[1752160235236,6.83722103,156.81,156.78,8.16034267]
[1752160235748,6.83722103,156.81,156.79,0.72]
[1752160235950,6.83722103,156.81,156.78,8.16034267]
[1752160236134,6.83722103,156.81,156.8,0.72]
[1752160238344,195.14468397,156.82,156.8,7.09755102]
[1752160238564,145.7,156.82,156.8,7.09755102]
[1752160238847,145.7,156.82,156.81,0.71]
[1752160239147,152.53722103,156.82,156.81,0.71]
[1752160239925,145.7,156.82,156.81,0.71]
[1752160240143,152.53722103,156.82,156.81,0.71]
[1752160241248,145.7,156.82,156.81,0.71]
[1752160241450,152.53722103,156.82,156.81,0.71]
[1752160241830,6.83722103,156.82,156.81,0.71]
[1752160243372,23.621905,156.82,156.79,0.71]
[1752160243535,23.621905,156.81,156.8,0.71]
[1752160243864,56.281905,156.81,156.79,0.71]
[1752160244039,6.83722103,156.8,156.78,0.2]
[1752160244230,56.48193566,156.81,156.78,0.2]
[1752160244231,6.83722103,156.79,156.78,0.2]
[1752160244747,39.51722103,156.79,156.78,0.2]
[1752160245258,56.301905,156.79,156.78,0.2]
[1752160245552,50.12468397,156.79,156.78,0.2]
[1752160245760,56.961905,156.79,156.78,0.2]
[1752160245942,63.33986277,156.79,156.78,0.2]
[1752160248053,89.33986277,156.79,156.78,0.2]
[1752160249441,55.99986277,156.79,156.78,0.2]
[1752160249753,6.83722103,156.8,156.78,0.91]
[1752160249943,23.621905,156.8,156.79,0.71]
[1752160251161,16.78468397,156.8,156.79,0.71]
[1752160251341,23.621905,156.8,156.79,0.71]
[1752160252064,56.341905,156.8,156.79,0.71]
[1752160252447,49.50468397,156.8,156.79,0.71]
[1752160252662,56.341905,156.8,156.79,0.71]
[1752160252853,49.50468397,156.8,156.79,0.71]
[1752160253055,56.341905,156.8,156.78,0.91]
[1752160253257,6.83722103,156.79,156.78,0.91]
[1752160254055,49.50468397,156.8,156.78,0.91]
[1752160254239,6.83722103,156.79,156.78,0.91]
[1752160254645,56.341905,156.8,156.78,0.91]
[1752160255049,56.341905,156.8,156.79,0.71]
[1752160256964,0.03,156.81,156.79,13.9251788]
[1752160257470,0.03,156.81,156.8,0.71]
[1752160257852,0.03,156.81,156.8,7.54722103]
[1752160258471,0.03,156.81,156.8,13.92477205]
[1752160260473,0.03,156.81,156.8,28.59319308]
[1752160260641,0.03,156.81,156.8,14.91875102]
[1752160260842,0.03,156.81,156.8,21.75597205]
[1752160261944,0.03,156.81,156.8,14.91875102]
[1752160262250,16.78468397,156.85,156.8,21.75597205]
[1752160262446,0.03,156.87,156.84,6.83722103]
[1752160262643,0.03,156.87,156.86,6.83722103]
[1752160263052,0.03,156.87,156.86,7.54722103]
[1752160263656,0.03,156.87,156.86,0.71]
[1752160263972,0.03,156.87,156.86,7.54722103]
[1752160264145,0.03,156.87,156.86,13.92233259]
[1752160264458,0.03,156.87,156.86,7.54722103]
[1752160264658,0.03,156.87,156.86,0.71]
[1752160264855,0.03,156.87,156.84,6.83722103]
[1752160265060,0.03,156.87,156.85,0.71]
[1752160267785,6.83722103,156.86,156.83,0.69]
[1752160268365,13.21236074,156.86,156.83,0.69]
[1752160269582,13.21236074,156.86,156.84,0.69]
[1752160269894,6.83722103,156.86,156.84,0.69]
[1752160270190,13.21242073,156.86,156.82,0.69]
[1752160270407,13.21242073,156.86,156.81,13.2141094]
[1752160270408,13.21242073,156.86,156.83,0.69]
[1752160270902,6.83722103,156.85,156.83,0.69]
[1752160271883,6.83722103,156.86,156.84,0.69]
[1752160272383,23.18951145,156.87,156.84,0.69]
[1752160272589,6.83722103,156.86,156.84,0.69]
[1752160273098,23.621905,156.86,156.85,0.69]
[1752160274085,29.99701656,156.86,156.85,0.69]
[1752160274276,29.99701656,156.86,156.84,0.69]
[1752160278174,29.99701656,156.86,156.82,6.83722103]
[1752160278376,6.83722103,156.85,156.83,0.69]
[1752160280177,6.83722103,156.85,156.81,13.21419269]
[1752160280377,6.83722103,156.85,156.84,0.69]
[1752160281100,6.83722103,156.85,156.83,0.69]
[1752160283805,23.15979553,156.86,156.83,0.69]
[1752160284012,6.83722103,156.85,156.83,0.69]
[1752160285094,13.21275987,156.85,156.83,0.69]
[1752160285414,13.88275987,156.85,156.81,0.69]
[1752160285715,13.88275987,156.85,156.82,0.69]
[1752160287279,6.83722103,156.84,156.82,0.69]
[1752160287480,6.83722103,156.83,156.8,0.06]
[1752160287704,6.83722103,156.81,156.8,0.06]
[1752160288211,7.50722103,156.81,156.8,0.06]
[1752160288708,6.83722103,156.81,156.8,0.06]
[1752160289910,16.78468397,156.81,156.8,0.06]
[1752160290113,16.78468397,156.82,156.8,0.75]
[1752160290616,45.85383404,156.83,156.8,0.06]
[1752160290783,45.85383404,156.83,156.81,0.69]
[1752160292720,6.83722103,156.82,156.8,0.75]
[1752160293887,6.37661301,156.83,156.8,0.75]
[1752160294085,6.83722103,156.82,156.8,0.75]
[1752160295903,6.83722103,156.82,156.81,0.69]
[1752160296090,23.621905,156.83,156.81,0.69]
[1752160296407,6.37568684,156.85,156.81,0.69]
[1752160296585,45.83290787,156.85,156.81,7.52722103]
[1752160296788,45.83290787,156.85,156.81,6.83722103]
[1752160297088,45.83290787,156.85,156.82,0.69]
[1752160297288,45.83290787,156.85,156.83,0.69]
[1752160297695,13.21290787,156.85,156.83,0.69]
[1752160298318,6.83722103,156.85,156.83,0.69]
[1752160298614,6.3751924,156.86,156.82,13.2139562]
[1752160298805,13.21241343,156.86,156.83,0.66]
[1752160299416,0.69,156.85,156.81,13.21421078]
[1752160300919,7.52722103,156.85,156.81,13.21421078]
[1752160301307,0.69,156.84,156.81,7.49722103]
[1752160301707,7.52722103,156.84,156.81,0.66]
[1752160305215,7.52722103,156.84,156.8,7.55722103]
[1752160305216,0.69,156.83,156.8,7.55722103]
[1752160305602,13.90326869,156.84,156.81,0.66]
[1752160307127,13.21290826,156.85,156.82,0.66]
[1752160307301,13.21290826,156.85,156.83,0.66]
[1752160307701,13.90290826,156.85,156.82,0.66]
[1752160308116,13.90290826,156.85,156.81,6.83722103]
[1752160308325,6.83722103,156.83,156.8,0.06]
[1752160308517,6.83722103,156.82,156.8,0.06]
[1752160308715,7.52722103,156.82,156.8,0.06]
[1752160308927,0.69,156.82,156.8,0.06]
[1752160309226,13.90383588,156.83,156.8,0.06]
[1752160311527,0.69,156.82,156.8,0.06]
[1752160312725,6.37661485,156.83,156.8,0.06]
[1752160312933,0.69,156.84,156.81,0.66]
[1752160313133,7.06595622,156.84,156.81,0.66]
[1752160314438,7.52722103,156.83,156.8,0.06]
[1752160314937,6.83722103,156.83,156.8,0.06]
[1752160315138,0.69,156.82,156.8,0.06]
[1752160315923,0.69,156.81,156.8,0.06]
[1752160318227,13.90436534,156.81,156.8,0.06]
[1752160321422,30.68904931,156.81,156.8,0.06]
[1752160324256,29.99904931,156.81,156.8,0.06]
[1752160324436,30.68904931,156.81,156.8,0.06]
[1752160324626,29.99904931,156.81,156.8,0.06]
[1752160325262,30.68904931,156.81,156.8,0.06]
[1752160326425,63.24904931,156.81,156.8,0.06]
[1752160329047,66.57713956,156.81,156.8,0.06]
[1752160332336,92.57713956,156.81,156.8,0.06]
[1752160333440,99.41436059,156.81,156.8,0.06]
[1752160334031,16.78468397,156.79,156.78,0.2]
[1752160334234,82.181905,156.79,156.78,0.2]
[1752160334434,82.871905,156.79,156.78,0.2]
[1752160334868,89.24986277,156.79,156.78,0.2]
[1752160335677,16.78468397,156.78,156.72,0.65]
[1752160335838,6.83722103,156.74,156.72,0.65]
[1752160336569,6.83722103,156.73,156.7,8.1259]
[1752160336900,13.2176517,156.73,156.71,0.65]
[1752160337461,6.38043067,156.73,156.71,0.65]
[1752160338274,13.21736075,156.74,156.72,0.65]
[1752160341980,13.90736075,156.74,156.72,0.65]
[1752160342475,13.21736075,156.74,156.72,0.65]
[1752160343569,33.25,156.75,156.72,0.65]
[1752160343570,39.62974984,156.75,156.72,0.65]
[1752160343950,6.83722103,156.74,156.72,0.65]
[1752160344481,13.21731294,156.74,156.72,0.65]
[1752160348864,13.90731294,156.74,156.72,0.65]
[1752160349064,7.52722103,156.74,156.72,0.65]
[1752160349267,32.56,156.75,156.72,0.65]
[1752160349465,6.83722103,156.75,156.72,0.65]
[1752160349867,6.83722103,156.74,156.72,0.65]
[1752160350072,6.83722103,156.74,156.73,0.65]
[1752160350476,7.52722103,156.74,156.71,0.65]
[1752160351085,7.52722103,156.74,156.72,0.65]
[1752160351267,6.83722103,156.74,156.72,0.65]
[1752160352061,7.52722103,156.74,156.72,0.65]
[1752160352483,6.83722103,156.74,156.73,0.65]
[1752160353493,6.37963986,156.75,156.73,0.65]
[1752160353789,7.06963986,156.75,156.73,0.65]
[1752160353996,6.83722103,156.74,156.73,0.65]
[1752160354206,6.83722103,156.74,156.7,21.34473283]
[1752160354367,6.83722103,156.74,156.71,0.65]
[1752160354568,6.83722103,156.74,156.72,0.65]
[1752160355396,7.52722103,156.74,156.72,0.65]
[1752160355697,7.52722103,156.74,156.7,2.2246]
[1752160355698,7.52722103,156.73,156.7,2.2246]
[1752160355894,7.52722103,156.73,156.7,0.65]
[1752160356393,7.52722103,156.73,156.69,13.21914678]
[1752160356394,7.52722103,156.72,156.69,0.65]
[1752160356767,6.83722103,156.72,156.7,0.65]
[1752160357175,7.52722103,156.71,156.67,7.03266855]
[1752160357399,7.52722103,156.71,156.68,0.72]
[1752160357902,6.38051214,156.73,156.69,0.72]
[1752160358075,6.38051214,156.73,156.68,6.83722103]
[1752160358076,6.83722103,156.72,156.7,0.72]
[1752160358594,6.83722103,156.72,156.68,6.83722103]
[1752160358797,7.55722103,156.72,156.69,0.72]
[1752160359685,23.621905,156.73,156.7,0.72]
[1752160359890,6.83722103,156.72,156.7,0.72]
[1752160360267,17.50468397,156.73,156.7,0.72]
[1752160360467,6.83722103,156.72,156.7,0.72]
[1752160361566,6.83722103,156.72,156.68,13.93949751]
[1752160361781,0.72,156.71,156.69,0.72]
[1752160361981,23.88516239,156.73,156.7,0.72]
[1752160362194,6.83722103,156.72,156.7,0.72]
[1752160363774,30.72238342,156.73,156.7,0.72]
[1752160363974,0.72,156.73,156.7,0.72]
[1752160364181,0.72,156.73,156.69,6.44198298]
[1752160364182,6.83722103,156.73,156.71,0.72]
[1752160364596,7.55722103,156.73,156.7,0.72]
[1752160366889,5.10232642,156.73,156.7,0.72]
[1752160367077,0.72,156.72,156.7,0.72]
[1752160367274,5.10232642,156.72,156.69,0.78]
[1752160367475,0.72,156.71,156.69,0.78]
[1752160368195,0.72,156.71,156.69,0.06]
[1752160369302,5.10232642,156.71,156.69,0.06]
[1752160370305,0.72,156.7,156.69,0.06]
[1752160371085,21.88701039,156.7,156.69,0.06]
[1752160371395,28.26863132,156.7,156.69,0.06]
[1752160376893,60.82863132,156.7,156.69,0.06]
[1752160382013,56.4463049,156.7,156.69,0.06]
[1752160382192,21.88701039,156.7,156.69,0.06]
[1752160382396,16.78468397,156.7,156.69,0.06]
[1752160382592,145.7,156.72,156.69,0.78]
[1752160382815,145.7,156.72,156.69,5.16232642]
[1752160383318,145.7,156.72,156.7,0.72]
[1752160383709,145.7,156.72,156.71,0.72]
[1752160384213,145.7,156.72,156.69,5.16232642]
[1752160384892,152.80083342,156.72,156.69,0.06]
[1752160385292,153.2672136,156.72,156.69,0.78]
[1752160385499,152.5472136,156.72,156.7,0.72]
[1752160385715,145.7,156.72,156.7,0.72]
[1752160386814,6.3805278,156.73,156.7,0.72]
[1752160386995,13.2277414,156.73,156.7,0.72]
[1752160387318,13.9477414,156.73,156.7,0.72]
[1752160387717,13.2277414,156.73,156.69,7.5872136]
[1752160387894,7.5072136,156.72,156.69,0.74]
[1752160388706,13.88802339,156.72,156.69,0.06]
[1752160388895,13.88802339,156.72,156.69,0.74]
[1752160389699,13.22766144,156.73,156.69,0.06]
[1752160389919,13.88766144,156.73,156.69,7.5872136]